[Event "21st Maccabiah GM 2022"]
[Site "?"]
[Date "2022.07.18"]
[Round "5.3"]
[White "Parkhov, Yair"]
[Black "Gruenfeld, Yehuda"]
[Result "*"]
[WhiteElo "2468"]
[BlackElo "2426"]
[Annotator "TA"]
[PlyCount "41"]
[EventDate "2022.07.13"]
[EventType "tourn"]
[EventCountry "ISR"]
[SourceTitle "playchess.com"]
[Source "ChessBase"]
[SourceQuality "1"]
[TimeControl "40/5400+30:1800+30"]

{[%evp 9,10,30,23]} 1. e4 {[%emt 0:01:08]} e5 {[%emt 0:00:40]} 2. Nf3 {[%emt 0:00:11]} Nc6 {[%emt 1:30:50]} 3. Bb5 {[%emt 1:30:41]} a6 {[%emt 0:00:49]} 4. Ba4 {[%emt 0:00:08]} Nf6 {[%emt 0:00:40]} 5. O-O {[%emt 0:00:18]} Be7 {[%emt 0:00:48] [#]} {Predecessor:} 6. Re1 $146 {C88: Closed Ruy Lopez: Anti-Marshall Systems.} b5 7. Bb3 O-O 8. a4 Bb7 9. d3 d6 10. Bd2 Qd7 11. Nc3 Na5 12. Ba2 b4 13. Ne2 c5 14. Ng3 Rab8 15. Nh4 g6 16. Bh6 Rfe8 17. Nhf5 Bd8 18. Ng7 Rf8 19. h3 b3 20. Bxb3 Nxb3 21. cxb3 {0-1 (78) Caruana,F (2783)-Ding,L (2806) Madrid 2022} *

[Event "21st Maccabiah GM 2022"]
[Site "?"]
[Date "2022.07.18"]
[Round "5.4"]
[White "Kobo, Ori"]
[Black "Postny, Evgeny"]
[Result "1-0"]
[ECO "C45"]
[WhiteElo "2534"]
[BlackElo "2564"]
[Annotator "TA"]
[PlyCount "78"]
[EventDate "2022.07.13"]
[EventType "tourn"]
[EventCountry "ISR"]
[SourceTitle "playchess.com"]
[Source "ChessBase"]
[SourceQuality "1"]
[TimeControl "40/5400+30:1800+30"]

{[%evp 11,78,26,41,33,23,13,16,14,13,22,21,33,41,12,45,45,38,34,53,8,12,20,24,32,34,11,28,21,82,25,160,154,150,152,126,79,50,46,91,81,120,17,29,2,3,1,6,7,7,2,12,13,24,24,18,17,26,13,104,4,39,0,29,0,0,0,0,0,12839]} 1. e4 {[%emt 0:00:11]} e5 {[%emt 0:00:07]} 2. Nf3 {[%emt 0:00:14]} Nc6 {[%emt 0:00:05]} 3. d4 {[%emt 0:00:28]} exd4 {[%emt 0:00:13]} 4. Nxd4 {[%emt 0:00:07]} Bc5 {[%emt 0:00:31]} 5. Nb3 {[%emt 0:00:11]} Bb4+ {[%emt 0:00:25]} 6. c3 {[%emt 0:00:14]} Be7 {[%emt 0:00:05]} 7. f4 {[%emt 0:00:13] C45: Scotch Game.} d6 {[%emt 0:02:02][%cal Bd7d6,Bd6d5][%mdl 32]} 8. N1d2 {[%emt 0:00:18]} d5 {[%emt 0:06:39]} 9. e5 {[%emt 0:02:53] [#]} Nh6 $146 {[%emt 0:00:33]} ({Predecessor:} 9... d4 10. Nf3 dxc3 11. Qxd8+ Nxd8 12. bxc3 Nh6 13. Bd3 O-O 14. Be3 f6 15. Nbd4 Ng4 {½-½ (58) Muzychuk,M (2526)-Koneru,H (2581) Sochi 2015}) 10. Bd3 {[%emt 0:07:00]} O-O {[%emt 0:13:58]} (10... f6 {looks sharper.} 11. Qh5+ Nf7 12. Nd4 g6) 11. Qc2 {[%emt 0:05:11]} g6 {[%emt 0:02:24]} 12. O-O {[%emt 0:00:41]} Bf5 {[%emt 0:02:47]} 13. Nf3 {[%emt 0:01:41]} Qd7 {[%emt 0:11:46]} 14. h3 {[%emt 0:06:56] Hoping for g4.} f6 {[%emt 0:16:03]} 15. Re1 {[%emt 1:11:42]} fxe5 {[%emt 0:11:00]} 16. fxe5 {[%emt 0:00:00]} Bxd3 {[%emt 0:00:13]} 17. Qxd3 {[%emt 0:00:00]} Nf5 {[%emt 0:00:09]} 18. Bg5 {[%emt 0:00:00]} Rad8 {[%emt 0:02:22]} (18... Rae8 $5 {[%cal Re7g5]}) 19. Bxe7 {[%emt 0:00:00]} Ncxe7 {[%emt 0:04:26]} (19... Qxe7 $11 {keeps the balance.} 20. Kh2 Ng7) 20. Rad1 {[%emt 0:00:00]} (20. g4 $1 $16 {[%cal Rg4f5]}) 20... Ng7 {[%emt 0:11:45]} (20... Qc8 $11) 21. Nc5 $1 $16 {[%emt 0:00:00][%csl LRb7,LRd7]} Qc6 {[%emt 0:01:20] [#]} 22. b4 {[%emt 0:00:00]} Ne6 {[%emt 0:00:21] [#]} 23. Nxe6 (23. Nd4 $142 $1 {[%cal Rd4c6]} Nxc5 24. bxc5) 23... Qxe6 {[%emt 0:00:04]} 24. Nd4 {[%emt 0:00:00]} Qc8 {[%emt 0:01:35]} (24... Qf7 $2 25. Rf1 Qg7 26. Ne6 Qxe5 27. Rde1 $18 (27. Nxf8 Rxf8 28. Rde1 Qd6 $18)) 25. Qe3 {[%emt 0:00:00] White is much more active.} c6 {[%emt 0:02:21]} 26. Kh1 {[%emt 0:00:00]} ({Better is} 26. Rf1 $16) 26... Rde8 {[%emt 0:02:22]} 27. Rf1 {[%emt 0:00:20]} Nf5 {[%emt 0:01:41]} 28. Nxf5 {[%emt 0:00:18]} Rxf5 {[%emt 0:00:06]} 29. Rxf5 {[%emt 0:00:22]} Qxf5 $11 {[%emt 0:00:10][%mdl 4096] Endgame KQR-KQR} 30. Re1 {[%emt 0:00:20]} b6 {[%emt 0:03:27]} 31. a4 {[%emt 0:02:16]} Re7 {[%emt 0:02:41]} 32. a5 {[%emt 0:01:22]} bxa5 {[%emt 0:00:12]} 33. bxa5 {[%emt 0:00:05]} Kg7 {[%emt 0:01:29]} 34. Qd4 {[%emt 0:02:40]} (34. e6 {is interesting.} a6 35. Qe2 Qe4 36. Qf1) 34... h5 {[%emt 0:02:08]} (34... g5 $11 {remains equal.}) 35. a6 {[%emt 0:00:26]} (35. e6+ $1 $16 Qf6 36. Qc5) 35... Kh6 {[%emt 0:00:00]} 36. Qe3+ {[%emt 0:00:54]} Qg5 {[%emt 0:00:21]} 37. Qc5 {[%emt 0:01:14]} (37. Qf2 $5 {[%cal Rf2f8]}) 37... Qg3 {[%emt 0:00:36] The position is equal.} 38. Re3 {[%emt 0:00:41]} Qg5 {[%emt 0:01:03]} 39. Re1 {[%emt 0:00:20]} Rxe5 $2 {[%emt 0:00:00][%mdl 8192] Weighted Error Value: White=0.20 (precise) /Black=0.26 (precise)} (39... Qg3 $11 40. Re2 Rf7) 1-0

[Event "21st Maccabiah GM 2022"]
[Site "?"]
[Date "2022.07.18"]
[Round "5.4"]
[White "Yarmonov, Igor"]
[Black "Postny, Evgeny"]
[Result "*"]
[WhiteElo "2372"]
[BlackElo "2564"]
[Annotator "TA"]
[PlyCount "28"]
[EventDate "2022.07.13"]
[EventType "tourn"]
[EventCountry "ISR"]
[SourceTitle "playchess.com"]
[Source "ChessBase"]
[SourceQuality "1"]
[TimeControl "40/5400+30:1800+30"]

{[%evp 11,15,33,29,30,38,37]} 1. e4 {[%emt 0:00:11]} e5 {[%emt 1:31:00]} 2. Nf3 {[%emt 0:00:14]} Nc6 {[%emt 0:00:05]} 3. d4 {[%emt 1:31:35]} exd4 {[%emt 0:00:13]} 4. Nxd4 {[%emt 0:00:07]} Bc5 {[%emt 0:00:31]} 5. Nb3 {[%emt 0:00:11]} Bb4+ {[%emt 0:00:25]} 6. c3 {[%emt 0:00:14]} Be7 {[%emt 0:00:05]} 7. f4 {[%emt 0:00:13] C45: Scotch Game.} d6 {[%emt 0:02:02]} 8. N1d2 {[%emt 0:00:18] [#]} {Predecessor:} d5 $146 9. e5 Nh6 10. Bd3 O-O 11. Qc2 g6 12. O-O Bf5 13. Nf3 Qd7 14. h3 f6 {1-0 (39) Kobo,O (2534)-Postny,E (2564) Jerusalem 2022} *

[Event "21st Maccabiah GM 2022"]
[Site "?"]
[Date "2022.07.18"]
[Round "5.5"]
[White "Alekseev, Evgeny"]
[Black "Gruenfeld, Yehuda"]
[Result "1/2-1/2"]
[ECO "A77"]
[WhiteElo "2601"]
[BlackElo "2426"]
[Annotator "TA"]
[PlyCount "43"]
[EventDate "2022.07.13"]
[EventType "tourn"]
[EventCountry "ISR"]
[SourceTitle "playchess.com"]
[Source "ChessBase"]
[SourceQuality "1"]
[TimeControl "40/5400+30:1800+30"]

{[%evp 20,43,55,0,91,79,77,87,92,9,0,0,50,0,25,13,18,0,0,-20,0,0,0,-46,-10,-12]} 1. d4 Nf6 2. c4 {[%emt 0:00:40]} e6 {[%emt 0:03:28]} 3. Nf3 {[%emt 0:00:30]} c5 {[%emt 0:00:30]} 4. d5 {[%emt 0:00:30]} d6 {[%emt 0:00:30]} 5. Nc3 {[%emt 0:00:30]} exd5 {[%emt 0:00:30]} 6. cxd5 {[%emt 0:00:30]} g6 {[%emt 0:00:30]} 7. Nd2 {[%emt 0:00:30]} Nbd7 {[%emt 0:00:30]} 8. e4 {[%emt 0:00:30]} Bg7 {[%emt 0:00:30]} 9. Be2 {[%emt 0:00:30]} O-O {[%emt 0:00:30]} 10. O-O {[%emt 0:00:30]} Re8 {[%emt 0:00:30]} 11. Re1 {[%emt 0:00:30]} (11. h3 $14) 11... g5 {[%emt 0:00:30] A77: Modern Benoni: Classical: 9...Re8 10 Nd2: 10...a6 and 10...Nbd7.} (11... a6 $1 $11 {remains equal.}) 12. Qc2 $16 {[%emt 0:00:30]} Ne5 {[%emt 0:00:30]} 13. Nf1 {[%emt 0:00:30]} h6 {[%emt 0:00:30] [#] White is better.} 14. f4 $146 {[%emt 0:00:30]} (14. Nd1 $16) ({Predecessor:} 14. Ng3 a6 15. a4 b6 16. b3 Ng6 17. Bb2 Nf4 18. Bc4 Rb8 19. Rad1 Ng4 20. h3 {0-1 (40) Botterill,G (2340)-Gallagher,J (2260) Brighton/ East Sussex 1984}) 14... gxf4 $11 {[%emt 0:00:30]} 15. Bxf4 {[%emt 0:00:30]} Ng6 {[%emt 0:00:30]} ({Black should play} 15... Neg4 $11) 16. Be3 {[%emt 0:00:30]} (16. Bg3 $14) 16... Ng4 {[%emt 0:00:30]} 17. Bxg4 {[%emt 0:00:30]} Bxg4 {[%emt 0:00:30]} 18. Qf2 {[%emt 0:00:30]} Bd7 {[%emt 0:00:30]} 19. a4 {[%emt 0:00:30]} a6 {[%emt 0:00:30]} 20. a5 {[%emt 0:00:30]} Ne5 {[%emt 0:00:30]} 21. Qe2 {[%emt 0:00:30] Inhibits Nd3.} (21. Nd2 $11 {feels stronger.}) 21... Qh4 {[%emt 0:00:30]} 22. Bf2 $1 {[%emt 0:00:30] Weighted Error Value: White=0.26 (precise) /Black=0.30} 1/2-1/2

[Event "21st Maccabiah GM 2022"]
[Site "?"]
[Date "2022.07.18"]
[Round "5.5"]
[White "Tzidkiya, Yeshaayahu"]
[Black "Alekseev, Evgeny"]
[Result "*"]
[ECO "D94"]
[WhiteElo "2419"]
[BlackElo "2601"]
[Annotator "TA"]
[PlyCount "127"]
[EventDate "2022.07.13"]
[EventType "tourn"]
[EventCountry "ISR"]
[SourceTitle "playchess.com"]
[Source "ChessBase"]
[SourceQuality "1"]
[TimeControl "40/5400+30:1800+30"]

{[%evp 15,127,-14,20,0,0,0,0,0,8,10,9,0,0,0,15,22,11,0,0,3,16,0,12,6,20,0,18,0,31,0,0,0,0,-26,-21,-25,-19,-42,-36,-41,-41,-49,-60,-51,0,-25,-17,-34,-49,-12,-19,-42,-22,-96,-107,-115,-100,-104,-108,-100,-104,-101,-73,-135,-143,-155,-157,-152,-151,-295,-295,-294,-98,-82,-16,-18,-18,-22,-12,-12,-12,-12,-12,-12,-12,-27,-28,-76,-18,-51,-8,-8,0,0,0,0,0,0,0,0,0,0,0,-5,0,-5,0,0,0,0,0,0,8,0]} 1. d4 Nf6 2. c4 g6 3. Nc3 d5 4. Nf3 Bg7 5. e3 O-O 6. Be2 dxc4 7. Bxc4 c5 8. O-O Nbd7 9. h3 {D94: Grünfeld: 4 Nf3 Bg7 5 e3.} e6 {[#]} 10. Qe2 $146 ({Predecessor:} 10. dxc5 Nxc5 11. Qe2 a6 12. a3 b5 {½-½ (12) Litterst,R (1930)-Mann,D (1881) Dresden 2001}) 10... a6 11. a4 {Against b5} b6 12. Rd1 Qc7 13. d5 exd5 14. Bxd5 Bb7 15. Bxb7 Qxb7 16. Bd2 Rfe8 17. Be1 Rab8 18. b3 Re6 19. Ra2 h6 20. Nd2 b5 21. axb5 axb5 22. Ra5 {[%cal Ra5b5]} Rb6 23. f3 Ne5 24. Nde4 Nxe4 25. Nxe4 c4 26. bxc4 Nxc4 27. Ra2 Qe7 {Against Nc5} 28. Rb1 f5 29. Bb4 Qf7 (29... Qe8 $1 $15 30. Nc3 Qxe3+ 31. Qxe3 Nxe3) 30. Nc5 {[#]} Nxe3 $1 {...Re8 is the strong threat.} 31. Rd2 $1 Nd5 32. Ba5 Re8 33. Qd3 Nf4 34. Qb3 (34. Qf1 $11 Rbb8 35. Rxb5) 34... Qxb3 $17 35. Rxb3 Rc6 36. Nd3 Ne2+ 37. Kf1 Nd4 $36 {[%mdl 2048] Keeping White busy.} (37... Ng3+ {with more complications.} 38. Kf2 f4 39. Nxf4 Nh1+) 38. Rb1 g5 39. Bb4 (39. Nb4 $142 Rc4 40. Bb6) 39... f4 40. Bc5 {[#]} Nf5 41. Bf2 Rd8 42. Rxb5 (42. Rdd1 $17 {is a better defense.}) 42... Ne3+ $19 43. Ke2 Nxg2 (43... Nc4 $19 {is more deadly.} 44. Rd1 Ra6) 44. Nc5 $17 Re8+ (44... Rxd2+ $17 45. Kxd2 Kf7) 45. Ne4 $1 $11 Re7 46. Rbd5 Rc1 47. Rd1 Rc2+ 48. R5d2 Rxd2+ 49. Rxd2 Rb7 50. Rd3 Rb1 51. Rd1 (51. Ra3 $11 {is more appropriate.}) 51... Rb2+ (51... Rxd1 $17 52. Kxd1 Kf7) 52. Rd2 Rb4 53. Rd3 {The position is equal.} Be5 54. Kf1 Ne3+ 55. Bxe3 Rb1+ 56. Kg2 {Black must now prevent Bd2.} fxe3 57. Rxe3 {[%mdl 4096] Endgame KRB-KRN} Bf4 58. Re2 Kg7 59. Nf2 h5 60. Nd3 Kf6 61. Nxf4 gxf4 62. h4 Rb7 63. Ra2 Re7 64. Kf2 {[%emt 1:01:40] Weighted Error Value: White=0.12 (very precise) /Black=0.13 (very precise)} *

[Event "21st Maccabiah GM 2022"]
[Site "?"]
[Date "2022.07.19"]
[Round "6.1"]
[White "Dvoirys, Semen I."]
[Black "Gruenfeld, Yehuda"]
[Result "1-0"]
[ECO "B88"]
[WhiteElo "2439"]
[BlackElo "2426"]
[Annotator "TA"]
[PlyCount "95"]
[EventDate "2022.07.13"]
[EventType "tourn"]
[EventCountry "ISR"]
[SourceTitle "playchess.com"]
[Source "ChessBase"]
[SourceQuality "1"]
[TimeControl "40/5400+30:1800+30"]

{[%evp 19,95,0,0,0,0,0,0,0,23,15,19,14,22,12,16,18,17,0,160,168,206,199,206,183,184,177,194,138,124,112,139,127,127,36,118,120,265,154,230,221,215,167,230,231,235,227,260,260,254,200,221,212,314,303,304,306,302,276,487,485,491,425,476,475,498,504,504,504,515,510,561,561,550,545,607,509,483,483]} 1. e4 {[%emt 0:00:20]} c5 {[%emt 0:05:04]} 2. Nf3 {[%emt 0:00:07]} d6 {[%emt 0:00:27]} 3. d4 {[%emt 0:00:23]} cxd4 {[%emt 0:00:05]} 4. Nxd4 {[%emt 0:00:03]} Nf6 {[%emt 0:00:05]} 5. Nc3 {[%emt 0:00:03]} a6 {[%emt 0:00:05]} 6. Bc4 {[%emt 0:00:13]} e6 {[%emt 0:00:09]} 7. a4 {[%emt 0:00:05]} Be7 {[%emt 0:00:35]} 8. O-O {[%emt 0:00:07]} O-O {[%emt 0:00:08]} 9. Be3 {[%emt 0:00:13]} Nc6 {[%emt 0:00:37]} 10. Qe2 {[%emt 0:00:10]} Bd7 {[%emt 0:04:05]} 11. f4 {[%emt 0:01:22] [#] B88: Sicilian: Sozin Attack.} d5 $146 {[%emt 0:19:35]} ({Predecessor:} 11... Nxe4 12. Nxe4 d5 13. Rad1 Qc8 14. Bd3 dxe4 15. Bxe4 g6 16. Nb3 Nb4 17. Qf3 Nd5 18. f5 {½-½ (18) Volokitin,A (2545)-Bruzon Batista,L (2595) Esbjerg 2002}) 12. exd5 {[%emt 0:08:57]} exd5 {[%emt 0:01:58]} 13. Bxd5 {[%emt 0:23:30] The position is equal.} (13. Nxd5 {keeps more tension.} Nxd5 14. Bxd5 Nxd4 15. Bxd4 Be6 16. c4) 13... Bg4 {[%emt 0:05:58]} 14. Nxc6 {[%emt 0:03:09]} Bxe2 {[%emt 0:00:04]} 15. Nxd8 {[%emt 0:00:06][%cal Bc6d8,Bd8b7,Bb7c5,Bc5d7,Bd7b6][%mdl 32]} Bxf1 {[%emt 0:02:09]} 16. Nxb7 {[%emt 0:11:39]} (16. Rxf1 Rfxd8 17. Bf3 Bb4 $17) 16... Bb4 {[%emt 0:04:05]} 17. Bb3 {[%emt 0:02:03]} Rab8 {[%emt 0:17:39][%cal Of8e8]} 18. Nc5 {[%emt 0:10:38]} Ng4 $2 {[%emt 0:08:36]} ({Black should try} 18... Rfc8 $11) 19. Bd4 $16 {[%emt 0:02:52]} (19. Rxf1 $6 Bxc3 20. Bf2 (20. Nxa6 Nxe3 21. Nxb8 Nxf1 $11) 20... Bxb2 $11) 19... Rfc8 {[%emt 0:07:04]} 20. Nd7 {[%emt 0:03:04] Pair of Knights!} (20. Kxf1 Bxc5 21. Bxc5 Rxc5 $11) 20... Rb7 {[%emt 0:06:58]} 21. Nb6 {[%emt 0:00:13] Dancing on a razor blade.} Rd8 {[%emt 0:03:51] [#]} 22. Ncd5 $1 $36 {[%emt 0:04:16][%mdl 2048] White has strong initiative.} Be2 {[%emt 0:00:20]} 23. c3 {[%emt 0:00:14]} (23. h3 $18) 23... Bf8 {[%emt 0:04:34]} 24. Bc2 {[%emt 0:07:38] Strongly threatening Be4.} Nf6 {[%emt 0:02:05] Against Be4} 25. Nxf6+ {[%emt 0:00:32]} gxf6 {[%emt 0:00:07]} 26. a5 {[%emt 0:00:14]} (26. Be4 $16 Rbb8 27. a5) 26... Bb5 {[%emt 0:00:45]} (26... Rc7 $1 $14) 27. Be4 {[%emt 0:02:31] White is more active.} ({Of course not} 27. Bxf6 $6 Bc5+ 28. Kh1 Bxb6 29. axb6 Rd2 $11) 27... Rxd4 {[%emt 0:02:21] This costs Black the game.} 28. cxd4 {[%emt 0:00:08]} (28. Bxb7 $18 Rd2 29. c4 Bc5+ 30. Kf1) 28... Re7 {[%emt 0:00:29] [#]} (28... Rb8 $16 29. Kf2 Rd8) 29. Nd5 $1 $18 {[%emt 0:01:26][%csl LRe7,LRf6]} Re6 {[%emt 0:00:10]} 30. Rc1 {[%emt 0:00:35]} Kg7 {[%emt 0:01:08] [#]} (30... Bc6 $142 31. Rc4 Bb5) 31. Bf3 $1 {[%emt 0:00:26]} Re8 {[%emt 0:02:36]} 32. Kf2 {[%emt 0:04:25]} Bd6 {[%emt 0:00:36]} 33. g3 {[%emt 0:00:56]} Rb8 {[%emt 0:00:17]} 34. b3 {[%emt 0:01:23]} Bd7 {[%emt 0:01:30]} 35. Nb6 {[%emt 0:02:18]} Be6 {[%emt 0:00:49]} (35... Bb5 $142 36. Be2 Bb4 37. Bxb5 Bxa5 38. Bxa6 Bxb6) 36. Rc6 {[%emt 0:02:51]} Bb4 {[%emt 0:00:32]} 37. Nc4 {[%emt 0:02:41] And now Rb6 would win.} Bc3 {[%emt 0:00:07]} 38. d5 {[%emt 0:00:14]} ({Inferior is} 38. Rxa6 Bxd4+ 39. Ke2 Rxb3 $11) 38... Bd4+ $2 {[%emt 0:00:42]} (38... Bd7 39. Rc7 (39. Rxa6 Rxb3 40. Be2 Bd4+ 41. Ke1 Bc5 $16) 39... Bh3) 39. Kg2 {[%emt 0:01:31] White is clearly winning.} Bf5 {[%emt 0:00:46]} 40. d6 {[%emt 0:04:57]} Rxb3 {[%emt 0:00:21]} 41. d7 {[%emt 0:30:53]} Bxd7 {[%emt 0:02:02] White must now prevent ...Rxf3.} 42. Rd6 {[%emt 0:00:00]} Be6 {[%emt 0:02:27] Hoping for ...Bc5.} 43. Rxd4 {[%emt 0:00:00]} Rb4 {[%emt 0:00:05]} 44. Be2 {[%emt 0:00:00]} f5 {[%emt 0:00:11]} 45. Kf2 {[%emt 0:00:00]} Ra4 {[%emt 0:01:12]} 46. Ke3 {[%emt 0:00:00]} Kf6 {[%emt 0:00:10]} 47. Nb6 {[%emt 0:00:00]} Rxa5 {[%emt 0:00:09]} 48. Ra4 {[%emt 0:00:00] Against Ra3+.  Weighted Error Value: White=0.20 (precise) /Black=0.36} 1-0

[Event "21st Maccabiah GM 2022"]
[Site "?"]
[Date "2022.07.19"]
[Round "6.2"]
[White "Postny, Evgeny"]
[Black "Alekseev, Evgeny"]
[Result "1/2-1/2"]
[ECO "D60"]
[WhiteElo "2564"]
[BlackElo "2601"]
[Annotator "TA"]
[PlyCount "45"]
[EventDate "2022.07.13"]
[EventType "tourn"]
[EventCountry "ISR"]
[SourceTitle "playchess.com"]
[Source "ChessBase"]
[SourceQuality "1"]
[TimeControl "40/5400+30:1800+30"]

{[%evp 22,45,9,0,0,0,0,0,0,0,0,0,0,0,0,0,0,0,0,-7,-4,-6,-6,0,0,-7]} 1. d4 {[%emt 0:00:05]} Nf6 {[%emt 0:00:14]} 2. c4 {[%emt 0:00:06]} e6 {[%emt 0:00:03]} 3. Nc3 {[%emt 0:00:08]} d5 {[%emt 0:04:43]} 4. Bg5 {[%emt 0:00:25]} Be7 {[%emt 0:05:25]} 5. e3 {[%emt 0:00:06]} Nbd7 {[%emt 0:03:28]} 6. Nf3 {[%emt 0:01:05]} O-O {[%emt 0:04:11]} 7. Be2 {[%emt 0:02:20]} h6 {[%emt 0:06:16]} 8. Bh4 {[%emt 0:00:14]} dxc4 {[%emt 0:14:20]} 9. O-O {[%emt 0:01:30]} c5 {[%emt 0:01:14]} 10. Bxc4 {[%emt 0:02:54]} a6 {[%emt 0:01:35]} 11. a4 {[%emt 0:03:26]} cxd4 {[%emt 0:06:54]} 12. exd4 {[%emt 0:05:17] The position is equal.} Nb6 {[%emt 0:05:25][%cal Bd7b6,Bb6c8,Bc8d6][%mdl 32] D60: Queen's Gambit Declined: Classical: Unusual White 7th moves.} 13. Bb3 {[%emt 0:00:19]} Bd7 {[%emt 0:00:44]} 14. Bxf6 {[%emt 0:09:36]} Bxf6 {[%emt 0:00:40]} 15. a5 {[%emt 0:00:06]} Nc8 {[%emt 0:01:47]} 16. d5 {[%emt 0:12:25] [#]} exd5 $146 {[%emt 0:01:20]} ({Predecessor:} 16... e5 17. Re1 Bg4 18. h3 Bxf3 19. Qxf3 Nd6 20. Ne4 Nxe4 21. Qxe4 Rc8 22. Ra4 Rc5 {½-½ (33) Raap,C (2336)-Schulz,R (2315) Remote email 2013}) 17. Nxd5 {[%emt 0:04:21]} Bc6 {[%emt 0:00:59]} 18. Re1 {[%emt 0:10:09]} Bxd5 {[%emt 0:04:13]} 19. Bxd5 {[%emt 0:01:18]} Nd6 {[%emt 0:00:08]} 20. Qd2 {[%emt 0:03:22]} Rc8 {[%emt 0:05:13]} 21. Rad1 {[%emt 0:10:23]} Qc7 {[%emt 0:01:26]} 22. Rc1 {[%emt 0:00:46]} Qd7 {[%emt 0:01:22]} 23. h3 {[%emt 0:06:30] An uneventful encounter.  Weighted Error Value: White=0.01 (flawless) /Black=0.00 (flawless)} 1/2-1/2

[Event "21st Maccabiah GM 2022"]
[Site "?"]
[Date "2022.07.19"]
[Round "6.3"]
[White "Ginsburg, Gennadi"]
[Black "Kobo, Ori"]
[Result "0-1"]
[ECO "B44"]
[WhiteElo "2400"]
[BlackElo "2534"]
[Annotator "TA"]
[PlyCount "74"]
[EventDate "2022.07.13"]
[EventType "tourn"]
[EventCountry "ISR"]
[SourceTitle "playchess.com"]
[Source "ChessBase"]
[SourceQuality "1"]
[TimeControl "40/5400+30:1800+30"]

{[%evp 27,74,0,0,-34,-32,-58,-61,-382,-211,-212,-208,-389,-386,-542,-550,-532,-312,-370,-386,-394,-402,-379,-348,-298,-211,-343,-337,-496,-129,-123,-28,-94,-106,-108,-109,-267,-230,-248,-255,-236,-241,-245,-239,-29987,-29988,-29988,-29989,-29992,-29993]} 1. e4 {[%emt 0:00:16]} c5 {[%emt 0:00:21]} 2. Nf3 {[%emt 0:00:18][%cal Bg1f3,Bf3d4,Bd4b5][%mdl 32]} Nc6 {[%emt 0:00:23]} 3. d4 {[%emt 0:00:21]} cxd4 {[%emt 0:00:06]} 4. Nxd4 {[%emt 0:00:03]} e6 {[%emt 0:00:38]} 5. Nb5 {[%emt 0:00:51]} d6 {[%emt 0:00:13]} 6. c4 {[%emt 0:00:34]} Nf6 {[%emt 0:00:20]} 7. N1c3 {[%emt 0:00:04]} a6 {[%emt 0:00:15]} 8. Na3 {[%emt 0:00:37]} Be7 {[%emt 0:00:28]} 9. Be2 {[%emt 0:00:20]} O-O {[%emt 0:00:12]} 10. O-O {[%emt 0:00:41]} b6 {[%emt 0:00:18]} 11. Be3 {[%emt 0:02:20]} Bb7 {[%emt 0:00:19]} 12. Qb3 {[%emt 0:02:11]} Nd7 {[%emt 0:00:15]} 13. Rfd1 {[%emt 0:00:45]} Nc5 {[%emt 0:00:22]} 14. Qc2 {[%emt 0:01:09]} Bf6 {[%emt 0:00:27][%cal Be7f6,Bf6e5,Be5f4][%mdl 32]} 15. f3 {[%emt 0:02:08] B44: Sicilian: Taimanov: 5 Nb5.} Be5 {[%emt 0:00:45]} 16. Bf1 {[%emt 0:07:32]} f5 {[%emt 0:01:25][%cal Bf7f5,Bf5e4][%mdl 32] [#] White must now prevent ...fxe4.} (16... Qh4 17. g3 Qh5 18. f4 Bxc3 19. bxc3 $11) 17. Rd2 $146 {[%emt 0:15:11][%mdl 8192]} (17. Qd2 $15) ({Predecessor:} 17. f4 Bxc3 18. Qxc3 Nxe4 19. Qb3 Rb8 20. Bxb6 Qh4 21. Qe3 e5 22. g3 Qf6 23. Bg2 exf4 24. gxf4 {0-1 (32) Salem,A (2690)-Abdusattorov,N (2661) Sharjah 2022}) 17... Nb4 {[%emt 0:07:41]} (17... Qh4 18. g3 Qf6 19. f4 $17) (17... fxe4 $142 18. fxe4 Bxc3 19. bxc3 Ne5 20. Bxc5 bxc5) 18. Qd1 $19 {[%emt 0:02:10]} fxe4 {[%emt 0:03:18]} 19. f4 {[%emt 0:02:21]} (19. fxe4 Qf6 20. Nc2) 19... Rxf4 {[%emt 0:05:47]} 20. Bxf4 {[%emt 0:01:37]} (20. Nc2 $142 Nbd3 21. Bxf4 Bxf4 22. Bxd3 exd3 23. Rxd3 Nxd3 24. Qxd3) 20... Bxf4 {[%emt 0:00:11]} 21. Re2 {[%emt 0:00:53]} Qf6 {[%emt 0:07:20]} 22. Nc2 {[%emt 0:04:32]} Nbd3 {[%emt 0:08:51]} 23. Nxe4 {[%emt 0:06:12]} Bxe4 {[%emt 0:02:27]} (23... Bxh2+ $2 24. Kxh2 Bxe4 25. Rxe4 $19) 24. Rxe4 {[%emt 0:01:30]} Nxe4 {[%emt 0:03:59]} 25. Qxd3 {[%emt 0:06:45]} Nc5 {[%emt 0:02:12]} 26. Qf3 {[%emt 0:05:25]} (26. Qc3 $142) 26... Rf8 {[%emt 0:00:18][%cal Of4h2] And now ...Bxh2+! would win.} 27. b4 {[%emt 0:01:33] [#]} (27. g3 $142 Qxb2 28. gxf4 Qxc2 29. Be2) 27... Nd7 $2 {[%emt 0:10:04]} (27... Bxh2+ $1 $19 {[%mdl 512] is more deadly.} 28. Kxh2 Qe5+ 29. Qg3 Rf4 $1) 28. g3 $17 {[%emt 0:13:53]} Qg5 {[%emt 0:11:05]} ({Black should play} 28... Be5 $17 29. Qxf6 gxf6) 29. Qe4 {[%emt 0:14:34]} (29. Qe2 $1 $11 {remains equal.} Be5 30. Rd1) 29... Be5 $36 {[%emt 0:01:41][%mdl 2048] White is under strong pressure. Black is more active.} 30. Rd1 {[%emt 0:01:17]} Nf6 {[%emt 0:01:05][%cal Bd7f6,Bf6g4,Bg4f2,Bf2d3][%mdl 32]} 31. Qe2 {[%emt 0:05:55]} (31. Qd3 $17) 31... Ng4 $19 {[%emt 0:18:34][%cal Og4h2]} 32. Bh3 {[%emt 0:00:31] [#]} Nf2 {[%emt 0:01:40]} ({Weaker is} 32... h5 33. Bxg4 Qxg4 34. Qxg4 hxg4 35. Ne3 $17) 33. Bxe6+ {[%emt 0:00:46]} Kh8 {[%emt 0:00:01]} 34. Rf1 {[%emt 0:00:56]} Bxg3 {[%emt 0:00:58] aiming for ...Bf4+.} 35. Qg4 {[%emt 0:00:08] [#]} (35. Bd5 $19 Bf4+ 36. Bg2) 35... Bxh2+ $1 {[%emt 0:05:11][%mdl 512] Black mates.} 36. Kg2 {[%emt 0:00:12]} Qd2 {[%emt 0:00:27]} ({Much less strong is} 36... Nxg4 37. Rxf8#) 37. Qd4 {[%emt 0:00:43]} Nd3+ {[%emt 0:00:10] Weighted Error Value: White=0.81/Black=0.52} 0-1